fUST/lending_fUST_20251203
["ID","MTS","AMOUNT","RATE_DAILY","PERIOD"]
[395534286,1764701442420,-500.0,0.00013698,2]
[395534288,1764701442430,-500.0,0.00013698,2]
[395534290,1764701442439,-500.0,0.00013698,2]
[395534292,1764701442448,-744.87,0.00013698,2]
[395534294,1764701442457,-766.88,0.00013698,2]
[395534296,1764701442467,-611.4,0.00013698,2]
[395534298,1764701442477,-500.0,0.00013698,2]
[395534300,1764701442487,-662.51,0.00013698,2]
[395534302,1764701442501,-500.0,0.00013698,2]
[395534304,1764701442510,-500.0,0.00013698,2]
[395534306,1764701442520,-500.0,0.00013698,2]
[395534308,1764701442531,-500.0,0.00013698,2]
[395534310,1764701442540,-500.0,0.00013698,2]
[395534312,1764701442550,-500.0,0.00013698,2]
[395534314,1764701442559,-500.0,0.00013698,2]
[395534316,1764701442569,-453.77755059,0.00013698,2]
[395534318,1764701442579,-992.12,0.00013698,2]
[395534339,1764701442747,-500.0,0.00013698,2]
[395534342,1764701442783,-500.0,0.00013698,2]
[395534344,1764701442793,-500.0,0.00013698,2]
[395534346,1764701442803,-500.0,0.00013698,2]
[395534348,1764701442812,-500.0,0.00013698,2]
[395534350,1764701442821,-500.0,0.00013698,2]
[395534352,1764701442830,-855.17851117,0.00013698,2]
[395534384,1764701443108,1179.48177132,9.537e-05,2]
[395534455,1764701443783,-250.0,0.00012923,2]
[395534457,1764701443793,-1.03148883,0.00013698,2]
[395534459,1764701443803,-500.0,0.00013698,2]
[395534461,1764701443813,-500.0,0.00013698,2]
[395534463,1764701443823,-500.0,0.00013698,2]
[395534465,1764701443833,-500.0,0.00013698,2]
[395534467,1764701443844,-500.0,0.00013698,2]
[395534469,1764701443855,-500.0,0.00013698,2]
[395534471,1764701443864,-500.0,0.00013698,2]
[395534473,1764701443875,-1406.02,0.00013698,2]
[395534475,1764701443885,-840.98,0.00013698,2]
[395534477,1764701443895,-500.0,0.00013698,2]
[395534479,1764701443904,-500.0,0.00013698,2]
[395534481,1764701443914,-502.2878679,0.00013698,2]
[395534483,1764701443923,-206.5398096,0.00013698,2]
[395534485,1764701443935,-500.0,0.00013698,2]
[395534487,1764701443945,-500.0,0.00013698,2]
[395534489,1764701443954,-500.0,0.00013698,2]
[395534491,1764701443965,-767.13,0.00013698,2]
[395534493,1764701443975,-500.0,0.00013698,2]
[395534495,1764701443985,-366.51545881,0.00013698,2]
[395534497,1764701443995,-500.0,0.00013698,2]
[395534499,1764701444004,-500.0,0.00013698,2]
[395534501,1764701444014,-160.99881428,0.00013698,2]
[395534502,1764701444023,-367.42749051,0.00013698,2]
[395534503,1764701444033,-500.0,0.00013698,2]
[395534504,1764701444042,-500.0,0.00013698,2]
[395534505,1764701444052,-729.45,0.00013698,2]
[395534506,1764701444062,-500.0,0.00013698,2]
[395534507,1764701444072,-501.02931991,0.00013698,2]
[395534508,1764701444081,-500.0,0.00013698,2]
[395534509,1764701444091,-1410.26,0.00013698,2]
[395534510,1764701444100,-223.03202324,0.00013698,2]
[395534511,1764701444110,-500.0,0.00013698,2]
[395534512,1764701444119,-500.0,0.00013698,2]
[395534513,1764701444129,-500.0,0.00013698,2]
[395534514,1764701444138,-500.0,0.00013698,2]
[395534515,1764701444147,-500.0,0.00013698,2]
[395534516,1764701444157,-500.0,0.00013698,2]
[395534517,1764701444166,-500.0,0.00013698,2]
[395534518,1764701444175,-500.0,0.00013698,2]
[395534519,1764701444184,-500.0,0.00013698,2]
[395534520,1764701444193,-697.63,0.00013698,2]
[395534521,1764701444203,-500.0,0.00013698,2]
[395534522,1764701444213,-630.93,0.00013698,2]
[395534523,1764701444224,-500.0,0.00013698,2]
[395534524,1764701444233,-500.0,0.00013698,2]
[395534525,1764701444242,-500.0,0.00013698,2]
[395534526,1764701444251,-500.0,0.00013698,2]
[395534527,1764701444261,-500.0,0.00013698,2]
[395534528,1764701444270,-685.43,0.00013698,2]
[395534529,1764701444279,-502.20367728,0.00013698,2]
[395534530,1764701444288,-748.56,0.00013698,2]
[395534531,1764701444298,-500.0,0.00013698,2]
[395534532,1764701444307,-704.58,0.00013698,2]
[395534533,1764701444316,-500.0,0.00013698,2]
[395534534,1764701444326,-500.0,0.00013698,2]
[395534535,1764701444335,-500.0,0.00013698,2]
[395534536,1764701444344,-500.0,0.00013698,2]
[395534537,1764701444354,-500.0,0.00013698,2]
[395534538,1764701444364,-500.0,0.00013698,2]
[395534539,1764701444378,-980.93,0.00013698,2]
[395534541,1764701444388,-500.0,0.00013698,2]
[395534543,1764701444398,-500.0,0.00013698,2]
[395534545,1764701444408,-500.25352972,0.00013698,2]
[395534547,1764701444418,-500.0,0.00013698,2]
[395534549,1764701444427,-500.0,0.00013698,2]
[395534551,1764701444436,-500.0,0.00013698,2]
[395534553,1764701444446,-500.0,0.00013698,2]
[395534555,1764701444456,-612.15,0.00013698,2]
[395534557,1764701444469,-500.0,0.00013698,2]
[395534559,1764701444478,-500.0,0.00013698,2]
[395534561,1764701444488,-500.0,0.00013698,2]
[395534563,1764701444503,-500.0,0.00013698,2]
[395534565,1764701444513,-500.0,0.00013698,2]
[395534568,1764701444523,-482.68869965,0.00013698,2]
[395534570,1764701444538,-17.31130035,0.00013698,2]
[395534572,1764701444547,-286.42809965,0.00013698,2]
[395534609,1764701444901,-1179.48177132,0.00010284,2]
[395534611,1764701444910,-1179.48177132,0.0001103,2]
[395534612,1764701444920,-1179.48177132,0.00011777,2]
[395534614,1764701444930,-1179.48177132,0.00012524,2]
[395534616,1764701444941,-283.10377837,0.00012729,2]
[395534618,1764701444952,-1179.48177132,0.00013271,2]
[395534620,1764701444963,-500.0,0.00013587,2]
[395534622,1764701444974,-374.11190035,0.00013698,2]
[395534624,1764701444983,-502.1022639,0.00013698,2]
[395534627,1764701444993,-525.01728257,0.00013698,2]
[395534628,1764701445004,-647.05,0.00013698,2]
[395534631,1764701445014,-500.0,0.00013698,2]
[395534633,1764701445024,-500.0,0.00013698,2]
[395534635,1764701445034,-500.0,0.00013698,2]
[395534636,1764701445043,-500.0,0.00013698,2]
[395534644,1764701445101,-500.0,0.00013698,2]
[395534646,1764701445111,-261.06904574,0.00013698,2]
[395534648,1764701445122,-500.0,0.00013698,2]
[395534650,1764701445131,-500.0,0.00013698,2]
[395534652,1764701445140,-500.0,0.00013698,2]
[395534654,1764701445149,-493.03306401,0.00013698,2]
[395534804,1764701446574,-6.96693599,0.00013698,2]
[395534806,1764701446583,-576.90419654,0.00013698,2]
[395534808,1764701446593,-903.02,0.00013698,2]
[395534810,1764701446602,-500.0,0.00013698,2]
[395534812,1764701446611,-500.0,0.00013698,2]
[395534814,1764701446620,-500.0,0.00013698,2]
[395534816,1764701446629,-500.0,0.00013698,2]
[395534818,1764701446639,-500.0,0.00013698,2]
[395534820,1764701446648,-538.46,0.00013698,2]
[395534822,1764701446657,-500.0,0.00013698,2]
[395534824,1764701446666,-500.0,0.00013698,2]
[395534826,1764701446675,-500.0,0.00013698,2]
[395534828,1764701446684,-584.69345396,0.00013698,2]
[395534830,1764701446693,-637.98,0.00013698,2]
[395534831,1764701446702,-500.91399541,0.00013698,2]
[395534834,1764701446712,-500.0,0.00013698,2]
[395534836,1764701446721,-503.06392178,0.00013698,2]
[395534837,1764701446731,-500.0,0.00013698,2]
[395534839,1764701446740,-1456.45,0.00013698,2]
[395534841,1764701446749,-731.12,0.00013698,2]
[395534843,1764701446758,-500.0,0.00013698,2]
[395534845,1764701446767,-500.0,0.00013698,2]
[395534847,1764701446777,-500.0,0.00013698,2]
[395534848,1764701446786,-874.93,0.00013698,2]
[395534849,1764701446795,-500.0,0.00013698,2]
[395534850,1764701446805,-666.63,0.00013698,2]
[395534851,1764701446815,-500.0,0.00013698,2]
[395534852,1764701446824,-593.81515433,0.00013698,2]
[395534853,1764701446834,-500.0,0.00013698,2]
[395534854,1764701446843,-534.18,0.00013698,2]
[395534855,1764701446852,-500.0,0.00013698,2]
[395534856,1764701446862,-500.0,0.00013698,2]
[395534857,1764701446871,-500.0,0.00013698,2]
[395534858,1764701446880,-500.0,0.00013698,2]
[395534859,1764701446889,-804.41,0.00013698,2]
[395534861,1764701446899,-500.0,0.00013698,2]
[395534863,1764701446908,-552.38,0.00013698,2]
[395534865,1764701446917,-500.0,0.00013698,2]
[395534867,1764701446926,-501.1090331,0.00013698,2]
[395534869,1764701446936,-500.0,0.00013698,2]
[395534871,1764701446945,-153.20251779,0.00013698,2]
[395534873,1764701446955,-500.0,0.00013698,2]
[395534875,1764701446964,-479.83214931,0.00013698,2]
[395534877,1764701446974,-578.32,0.00013698,2]
[395534879,1764701446983,-808.62,0.00013698,2]
[395534881,1764701446993,-245.60095134,0.00013698,2]
[395534883,1764701447006,-254.39904866,0.00013698,2]
[395534886,1764701447016,-561.064547,0.00013698,2]
[395534887,1764701447027,-2940.16,0.00013698,2]
[395534889,1764701447037,-500.0,0.00013698,2]
[395534891,1764701447047,-500.0,0.00013698,2]
[395534893,1764701447056,-500.0,0.00013698,2]
[395534895,1764701447066,-500.0,0.00013698,2]
[395534897,1764701447075,-500.0,0.00013698,2]
[395534899,1764701447085,-500.0,0.00013698,2]
[395534901,1764701447094,-500.0,0.00013698,2]
[395534903,1764701447103,-520.06,0.00013698,2]
[395534905,1764701447112,-500.0,0.00013698,2]
[395534907,1764701447121,-500.0,0.00013698,2]
[395534909,1764701447131,-500.0,0.00013698,2]
[395534911,1764701447140,-500.0,0.00013698,2]
[395534913,1764701447150,-500.0,0.00013698,2]
[395534915,1764701447159,-500.0,0.00013698,2]
[395534917,1764701447169,-500.0,0.00013698,2]
[395534919,1764701447179,-582.92,0.00013698,2]
[395534921,1764701447188,-500.0,0.00013698,2]
[395534923,1764701447197,-500.0,0.00013698,2]
[395534925,1764701447207,-500.0,0.00013698,2]
[395534927,1764701447218,-500.0,0.00013698,2]
[395534929,1764701447228,-500.0,0.00013698,2]
[395534931,1764701447238,-500.0,0.00013698,2]
[395534933,1764701447247,-594.71,0.00013698,2]
[395534935,1764701447257,-500.0,0.00013698,2]
[395534937,1764701447266,-999.89,0.00013698,2]
[395534939,1764701447274,-1254.19,0.00013698,2]
[395534941,1764701447284,-500.0,0.00013698,2]
[395534943,1764701447294,-500.0,0.00013698,2]
[395534945,1764701447303,-500.0,0.00013698,2]
[395534947,1764701447311,-500.0,0.00013698,2]
[395534949,1764701447321,-654.72,0.00013698,2]
[395534951,1764701447331,-500.0,0.00013698,2]
[395534953,1764701447340,-500.0,0.00013698,2]
[395534955,1764701447349,-500.0,0.00013698,2]
[395534957,1764701447359,-500.0,0.00013698,2]
[395534959,1764701447368,-401.84442702,0.00013698,2]
[395534961,1764701447377,-500.0,0.00013698,2]
[395534963,1764701447387,-1052.94,0.00013698,2]
[395534965,1764701447396,-500.0,0.00013698,2]
[395534967,1764701447405,-500.0,0.00013698,2]
[395534969,1764701447414,-555.2,0.00013698,2]
[395534971,1764701447424,-500.0,0.00013698,2]
[395534973,1764701447434,-500.0,0.00013698,2]
[395534975,1764701447443,-500.0,0.00013698,2]
[395534978,1764701447453,-514.76574837,0.00013698,2]
[395534980,1764701447462,-2651.08,0.00013698,2]
[395534981,1764701447472,-500.0,0.00013698,2]
[395534983,1764701447482,-500.0,0.00013698,2]
[395534985,1764701447493,-157.75282,0.00013698,2]
[395534987,1764701447504,-500.0,0.00013698,2]
[395534989,1764701447513,-571.08,0.00013698,2]
[395534991,1764701447521,-500.0,0.00013698,2]
[395534993,1764701447530,-500.0,0.00013698,2]
[395534995,1764701447540,-1190.71,0.00013698,2]
[395534997,1764701447549,-1194.17,0.00013698,2]
[395534999,1764701447559,-3674.01,0.00013698,2]
[395535001,1764701447569,-500.0,0.00013698,2]
[395535003,1764701447580,-500.0,0.00013698,2]
[395535005,1764701447589,-785.83,0.00013698,2]
[395535007,1764701447598,-500.0,0.00013698,2]
[395535009,1764701447608,-656.25,0.00013698,2]
[395535011,1764701447617,-500.0,0.00013698,2]
[395535014,1764701447627,-500.0,0.00013698,2]
[395535015,1764701447637,-500.0,0.00013698,2]
[395535017,1764701447646,-500.0,0.00013698,2]
[395535020,1764701447657,-757.4,0.00013698,2]
[395535021,1764701447665,-884.0,0.00013698,2]
[395535023,1764701447674,-500.0,0.00013698,2]
[395535025,1764701447685,-512.36,0.00013698,2]
[395535027,1764701447694,-500.0,0.00013698,2]
[395535029,1764701447703,-500.0,0.00013698,2]
[395535031,1764701447713,-500.0,0.00013698,2]
[395535033,1764701447723,-500.0,0.00013698,2]
[395535035,1764701447731,-500.0,0.00013698,2]
[395535037,1764701447740,-500.0,0.00013698,2]
[395535039,1764701447750,-500.0,0.00013698,2]
[395535041,1764701447759,-1101.32,0.00013698,2]
[395535043,1764701447768,-500.0,0.00013698,2]
[395535045,1764701447777,-1547.0,0.00013698,2]
[395535047,1764701447787,-500.0,0.00013698,2]
[395535049,1764701447796,-761.67,0.00013698,2]
[395535051,1764701447805,-500.0,0.00013698,2]
[395535053,1764701447815,-725.03,0.00013698,2]
[395535055,1764701447824,-683.64,0.00013698,2]
[395535057,1764701447833,-500.0,0.00013698,2]
[395535059,1764701447842,-1115.07,0.00013698,2]
[395535061,1764701447852,-500.0,0.00013698,2]
[395535063,1764701447861,-500.0,0.00013698,2]
[395535065,1764701447870,-746.83,0.00013698,2]
[395535067,1764701447879,-581.39,0.00013698,2]
[395535069,1764701447888,-500.0,0.00013698,2]
[395535071,1764701447897,-500.0,0.00013698,2]
[395535073,1764701447907,-685.38,0.00013698,2]
[395535075,1764701447916,-500.0,0.00013698,2]
[395535077,1764701447926,-500.0,0.00013698,2]
[395535079,1764701447935,-500.0,0.00013698,2]
[395535081,1764701447944,-614.55,0.00013698,2]
[395535083,1764701447953,-500.39439844,0.00013698,2]
[395535085,1764701447962,-558.72,0.00013698,2]
[395535087,1764701447972,-500.0,0.00013698,2]
[395535089,1764701447981,-500.0,0.00013698,2]
[395535091,1764701447991,-663.15,0.00013698,2]
[395535093,1764701448000,-506.38859812,0.00013698,2]
[395535095,1764701448010,-545.0,0.00013698,2]
[395535097,1764701448020,-1084.59,0.00013698,2]
[395535099,1764701448031,-2640.32,0.00013698,2]
[395535101,1764701448040,-500.0,0.00013698,2]
[395535103,1764701448050,-897.9,0.00013698,2]
[395535105,1764701448059,-500.0,0.00013698,2]
[395535107,1764701448068,-500.0,0.00013698,2]
[395535109,1764701448077,-500.0,0.00013698,2]
[395535111,1764701448086,-500.0,0.00013698,2]
[395535113,1764701448096,-526.62277233,0.00013698,2]
[395535115,1764701448105,-500.0,0.00013698,2]
[395535117,1764701448114,-521.99,0.00013698,2]
[395535119,1764701448124,-500.0,0.00013698,2]
[395535121,1764701448134,-600.76,0.00013698,2]
[395535123,1764701448144,-672.12,0.00013698,2]
[395535125,1764701448153,-1334.2,0.00013698,2]
[395535127,1764701448163,-532.29,0.00013698,2]
[395535129,1764701448172,-681.01,0.00013698,2]
[395535131,1764701448182,-1051.96,0.00013698,2]
[395535133,1764701448191,-500.0,0.00013698,2]
[395535135,1764701448201,-500.0,0.00013698,2]
[395535137,1764701448211,-237.59796047,0.00013698,2]
[395535139,1764701448221,-500.0,0.00013698,2]
[395535141,1764701448232,-1262.31,0.00013698,2]
[395535143,1764701448244,-324.63291118,0.00013698,2]
[395535146,1764701448255,-500.0,0.00013698,2]
[395535148,1764701448265,-500.0,0.00013698,2]
[395535150,1764701448275,-536.51135105,0.00013698,2]
[395535152,1764701448284,-1158.47,0.00013698,2]
[395535154,1764701448293,-500.0,0.00013698,2]
[395535156,1764701448302,-500.12110129,0.00013698,2]
[395535158,1764701448311,-500.0,0.00013698,2]
[395535160,1764701448322,-1154.11,0.00013698,2]
[395535162,1764701448331,-500.0,0.00013698,2]
[395535164,1764701448341,-500.0,0.00013698,2]
[395535166,1764701448351,-500.0,0.00013698,2]
[395535168,1764701448361,-1804.04,0.00013698,2]
[395535170,1764701448370,-1270.5,0.00013698,2]
[395535172,1764701448379,-1003.82,0.00013698,2]
[395535174,1764701448388,-500.0,0.00013698,2]
[395535176,1764701448397,-500.0,0.00013698,2]
[395535178,1764701448407,-500.0,0.00013698,2]
[395535180,1764701448417,-898.5,0.00013698,2]
[395535182,1764701448426,-913.14,0.00013698,2]
[395535184,1764701448436,-1339.71,0.00013698,2]
[395535186,1764701448446,-500.0,0.00013698,2]
[395535188,1764701448455,-669.86,0.00013698,2]
[395535190,1764701448466,-500.0,0.00013698,2]
[395535192,1764701448476,-500.0,0.00013698,2]
[395535194,1764701448486,-500.0,0.00013698,2]
[395535196,1764701448498,-511.37186583,0.00013698,2]
[395535198,1764701448508,-927.51,0.00013698,2]
[395535200,1764701448518,-1526.98,0.00013698,2]
[395535202,1764701448528,-856.32,0.00013698,2]
[395535204,1764701448538,-500.0,0.00013698,2]
[395535206,1764701448549,-500.0,0.00013698,2]
[395535208,1764701448559,-500.0,0.00013698,2]
[395535210,1764701448569,-769.97,0.00013698,2]
[395535212,1764701448580,-500.0,0.00013698,2]
[395535214,1764701448590,-795.35,0.00013698,2]
[395535216,1764701448600,-500.0,0.00013698,2]
[395535218,1764701448610,-500.0,0.00013698,2]
[395535219,1764701448621,-1043.87,0.00013698,2]
[395535221,1764701448631,-500.0,0.00013698,2]
[395535223,1764701448640,-500.0,0.00013698,2]
[395535225,1764701448650,-1558.54,0.00013698,2]
[395535227,1764701448660,-4577.7,0.00013698,2]
[395535229,1764701448671,-2779.22,0.00013698,2]
[395535231,1764701448680,-500.0,0.00013698,2]
[395535233,1764701448690,-500.0,0.00013698,2]
[395535235,1764701448700,-558.93,0.00013698,2]
[395535237,1764701448710,-5255.43,0.00013698,2]
[395535239,1764701448721,-500.0,0.00013698,2]
[395535241,1764701448731,-1058.87,0.00013698,2]
[395535243,1764701448741,-213.93589507,0.00013698,2]
[395535245,1764701448751,-503.31927721,0.00013698,2]
[395535247,1764701448760,-500.0,0.00013698,2]
[395535249,1764701448770,-500.0,0.00013698,2]
[395535251,1764701448780,-500.0,0.00013698,2]
[395535253,1764701448789,-1934.08,0.00013698,2]
[395535255,1764701448799,-5617.15,0.00013698,2]
[395535257,1764701448809,-887.38,0.00013698,2]
[395535259,1764701448819,-500.0,0.00013698,2]
[395535261,1764701448828,-1527.14,0.00013698,2]
[395535263,1764701448838,-500.0,0.00013698,2]
[395535265,1764701448848,-500.0,0.00013698,2]
[395535266,1764701448858,-1405.76,0.00013698,2]
[395535268,1764701448867,-500.0,0.00013698,2]
[395535270,1764701448877,-500.0,0.00013698,2]
[395535272,1764701448886,-500.0,0.00013698,2]
[395535274,1764701448896,-500.0,0.00013698,2]
[395535276,1764701448905,-1075.72,0.00013698,2]
[395535278,1764701448915,-953.36,0.00013698,2]
[395535280,1764701448925,-500.0,0.00013698,2]
[395535282,1764701448935,-661.78,0.00013698,2]
[395535284,1764701448945,-772.22,0.00013698,2]
[395535285,1764701448954,-500.0,0.00013698,2]
[395535287,1764701448964,-500.0,0.00013698,2]
[395535289,1764701448974,-529.38,0.00013698,2]
[395535291,1764701448984,-1686.67,0.00013698,2]
[395535293,1764701448993,-726.98,0.00013698,2]
[395535295,1764701449003,-500.0,0.00013698,2]
[395535297,1764701449013,-500.0,0.00013698,2]
[395535299,1764701449022,-500.0,0.00013698,2]
[395535301,1764701449032,-500.0,0.00013698,2]
[395535302,1764701449042,-485.69770735,0.00013698,2]
[395535304,1764701449052,-1026.51,0.00013698,2]
[395535306,1764701449063,-589.23,0.00013698,2]
[395535308,1764701449073,-1030.79,0.00013698,2]
[395535310,1764701449083,-500.0,0.00013698,2]
[395535312,1764701449093,-500.0,0.00013698,2]
[395535314,1764701449103,-500.0,0.00013698,2]
[395535316,1764701449113,-500.0,0.00013698,2]
[395535318,1764701449122,-500.0,0.00013698,2]
[395535320,1764701449132,-2650.59,0.00013698,2]
[395535322,1764701449142,-500.0,0.00013698,2]
[395535323,1764701449152,-586.98,0.00013698,2]
[395535325,1764701449162,-500.0,0.00013698,2]
[395535327,1764701449172,-500.0,0.00013698,2]
[395535329,1764701449181,-500.0,0.00013698,2]
[395535331,1764701449191,-1026.46,0.00013698,2]
[395535332,1764701449200,-500.0,0.00013698,2]
[395535334,1764701449210,-500.0,0.00013698,2]
[395535336,1764701449220,-2459.73,0.00013698,2]
[395535338,1764701449230,-623.71,0.00013698,2]
[395535340,1764701449239,-1334.26,0.00013698,2]
[395535342,1764701449248,-505.25413291,0.00013698,2]
[395535344,1764701449260,-743.54,0.00013698,2]
[395535346,1764701449269,-500.0,0.00013698,2]
[395535347,1764701449279,-507.03739602,0.00013698,2]
[395535349,1764701449289,-500.0,0.00013698,2]
[395535351,1764701449298,-1066.86,0.00013698,2]
[395535353,1764701449308,-500.0,0.00013698,2]
[395535355,1764701449318,-1009.9,0.00013698,2]
[395535357,1764701449328,-1073.69,0.00013698,2]
[395535359,1764701449337,-3476.88,0.00013698,2]
[395535360,1764701449347,-10553.61,0.00013698,2]
[395535362,1764701449356,-751.93,0.00013698,2]
[395535364,1764701449367,-500.0,0.00013698,2]
[395535366,1764701449376,-500.0,0.00013698,2]
[395535368,1764701449386,-500.0,0.00013698,2]
[395535370,1764701449396,-500.0,0.00013698,2]
[395535372,1764701449406,-717.52,0.00013698,2]
[395535374,1764701449415,-518.44,0.00013698,2]
[395535375,1764701449424,-500.30777258,0.00013698,2]
[395535377,1764701449434,-500.0,0.00013698,2]
[395535379,1764701449443,-500.0,0.00013698,2]
[395535381,1764701449453,-1129.49,0.00013698,2]
[395535383,1764701449462,-2454.33,0.00013698,2]
[395535385,1764701449473,-215.685293,0.00013698,2]
[395535386,1764701449482,-500.0,0.00013698,2]
[395535388,1764701449496,-500.0,0.00013698,2]
[395535390,1764701449506,-632.69,0.00013698,2]
[395535392,1764701449516,-500.0,0.00013698,2]
[395535394,1764701449527,-3014.68,0.00013698,2]
[395535396,1764701449536,-1167.13,0.00013698,2]
[395535398,1764701449546,-500.0,0.00013698,2]
[395535399,1764701449556,-500.0,0.00013698,2]
[395535401,1764701449568,-628.46,0.00013698,2]
[395535403,1764701449578,-504.67801744,0.00013698,2]
[395535405,1764701449588,-1794.63,0.00013698,2]
[395535407,1764701449598,-500.0,0.00013698,2]
[395535409,1764701449608,-500.0,0.00013698,2]
[395535411,1764701449618,-500.0,0.00013698,2]
[395535413,1764701449628,-500.0,0.00013698,2]
[395535415,1764701449638,-487.64278847,0.00013698,2]
[395535417,1764701449648,-500.0,0.00013698,2]
[395535418,1764701449657,-500.0,0.00013698,2]
[395535420,1764701449669,-500.0,0.00013698,2]
[395535422,1764701449678,-500.0,0.00013698,2]
[395535424,1764701449687,-500.0,0.00013698,2]
[395535426,1764701449697,-500.0,0.00013698,2]
[395535427,1764701449707,-659.91,0.00013698,2]
[395535429,1764701449718,-500.0,0.00013698,2]
[395535431,1764701449728,-500.0,0.00013698,2]
[395535433,1764701449738,-500.0,0.00013698,2]
[395535435,1764701449747,-590.81043138,0.00013698,2]
[395535437,1764701449757,-1208.9,0.00013698,2]
[395535439,1764701449768,-1389.99,0.00013698,2]
[395535440,1764701449778,-509.81,0.00013698,2]
[395535442,1764701449788,-535.23,0.00013698,2]
[395535444,1764701449797,-1060.84,0.00013698,2]
[395535446,1764701449807,-1476.97,0.00013698,2]
[395535448,1764701449816,-500.0,0.00013698,2]
[395535450,1764701449826,-500.0,0.00013698,2]
[395535451,1764701449835,-500.0,0.00013698,2]
[395535453,1764701449846,-500.0,0.00013698,2]
[395535455,1764701449856,-500.0,0.00013699,2]
[395535457,1764701449866,-500.0,0.00013699,2]
[395535459,1764701449875,-500.51735056,0.00013699,2]
[395535461,1764701449885,-500.0,0.00013699,2]
[395535462,1764701449895,-500.0,0.00013699,2]
[395535464,1764701449905,-500.0,0.00013699,2]
[395535466,1764701449916,-172.8248303,0.00013699,2]
[395535468,1764701449927,-500.0,0.00013699,2]
[395535470,1764701449936,-165.68707188,0.00013699,2]
[395535472,1764701449945,-501.68091639,0.00013699,2]
[395535474,1764701449955,-151.0,0.00013699,2]
[395535475,1764701449965,-151.0,0.00013699,2]
[395535477,1764701449975,-220.744975,0.00013699,2]
[395535479,1764701449984,-151.0,0.00013699,2]
[395535481,1764701449994,-151.0,0.00013699,2]
[395535483,1764701450004,-1000.0,0.00013699,2]
[395535485,1764701450014,-730.0138,0.00013699,2]
[395535486,1764701450024,-151.0,0.000137,2]
[395535488,1764701450033,-151.0,0.000137,2]
[395535489,1764701450043,-414.0,0.00013819,2]
[395535491,1764701450054,-1000.0,0.00013821,2]
[395535492,1764701450064,-1000.0,0.00013821,2]
[395535494,1764701450074,-1000.0,0.00013821,2]
[395535496,1764701450083,-907.80072616,0.0001387,2]
[395535497,1764701450093,-480.02692408,0.00013879,2]
[395535499,1764701450103,-217.15233878,0.00013953,2]
[395535501,1764701450115,-225.7893304,0.00013972,2]
[395535502,1764701450125,-500.0,0.00013972,2]
[395535504,1764701450135,-500.0,0.00013972,2]
[395535505,1764701450145,-500.0,0.00013972,2]
[395535507,1764701450155,-500.0,0.00013972,2]
[395535509,1764701450165,-500.0,0.00013972,2]
[395535511,1764701450175,-500.0,0.00013972,2]
[395535512,1764701450184,-500.0,0.00013972,2]
[395535514,1764701450195,-500.0,0.00013972,2]
[395535515,1764701450204,-500.0,0.00013972,2]
[395535517,1764701450215,-500.0,0.00013972,2]